[Event "*** Titled Tuesday Blitz"]
[Site "Chess.com"]
[Date "2018.09.04"]
[Round "6"]
[White "LawrenceTrent"]
[Black "GHANDEEVAM2003"]
[Result "0-1"]
[WhiteElo "2550"]
[BlackElo "2696"]
[TimeControl "180+2"]
[EndTime "14:53:10 PDT"]
[Termination "GHANDEEVAM2003 won by resignation"]

1. e4 {[%clk 0:03:01.9]} 1... e6 {[%clk 0:02:59.7]} 2. d4 {[%clk 0:03:02.5]}
2... d5 {[%clk 0:03:01.1]} 3. Nd2 {[%clk 0:03:03.9]} 3... Nf6 {[%clk 0:03:01.5]}
4. e5 {[%clk 0:03:04.5]} 4... Ne4 {[%clk 0:03:02.7]} 5. Bd3 {[%clk 0:03:03.1]}
5... Nxd2 {[%clk 0:03:02.8]} 6. Bxd2 {[%clk 0:03:03.7]} 6... c5 {[%clk
0:03:04.2]} 7. dxc5 {[%clk 0:03:04.8]} 7... Nc6 {[%clk 0:03:05.2]} 8. Nf3 {[%clk
0:03:05.5]} 8... Bxc5 {[%clk 0:03:06.4]} 9. O-O {[%clk 0:03:06.5]} 9... a6
{[%clk 0:03:00]} 10. a3 {[%clk 0:03:06.2]} 10... b5 {[%clk 0:03:00.1]} 11. b4
{[%clk 0:02:48.8]} 11... Be7 {[%clk 0:02:57]} 12. c3 {[%clk 0:02:31.6]} 12...
Qb6 {[%clk 0:02:47]} 13. a4 {[%clk 0:02:30.3]} 13... Rb8 {[%clk 0:02:47.2]} 14.
axb5 {[%clk 0:02:30.5]} 14... axb5 {[%clk 0:02:49.1]} 15. Be3 {[%clk 0:02:31.8]}
15... Qc7 {[%clk 0:02:48.9]} 16. Re1 {[%clk 0:02:31.8]} 16... Bd7 {[%clk
0:02:45]} 17. Qb1 {[%clk 0:02:02.9]} 17... h6 {[%clk 0:02:39.6]} 18. Re2 {[%clk
0:01:54.3]} 18... O-O {[%clk 0:02:35.7]} 19. Qc1 {[%clk 0:01:45.7]} 19... f5
{[%clk 0:02:35.1]} 20. h4 {[%clk 0:01:27.8]} 20... Be8 {[%clk 0:02:28.2]} 21.
Nd4 {[%clk 0:01:21.7]} 21... Nxe5 {[%clk 0:02:12.8]} 22. Nxe6 {[%clk 0:01:05.4]}
22... Nxd3 {[%clk 0:02:13.2]} 23. Qd2 {[%clk 0:01:06.4]} 23... Qc4 {[%clk
0:02:03.2]} 24. Nxf8 {[%clk 0:01:01.5]} 24... Bxf8 {[%clk 0:02:02]} 25. Rd1
{[%clk 0:01:02.8]} 25... Bh5 {[%clk 0:01:55.5]} 26. f3 {[%clk 0:01:00.6]} 26...
f4 {[%clk 0:01:09.6]} 27. Bd4 {[%clk 0:00:58.3]} 27... Bg6 {[%clk 0:01:08.1]}
28. h5 {[%clk 0:00:56.2]} 28... Bf5 {[%clk 0:01:08.4]} 29. Ra1 {[%clk
0:00:50.3]} 29... Bxb4 {[%clk 0:01:05.3]} 30. Ra7 {[%clk 0:00:50.7]} 30... Qxd4+
{[%clk 0:01:05.6]} 31. cxd4 {[%clk 0:00:49.5]} 31... Bxd2 {[%clk 0:01:07.5]} 32.
Rxd2 {[%clk 0:00:50.6]} 32... b4 {[%clk 0:01:03.6]} 33. Ra1 {[%clk 0:00:47.8]}
33... b3 {[%clk 0:01:03.6]} 34. Rb1 {[%clk 0:00:48.8]} 34... b2 {[%clk 0:01:02]}
35. Kh2 {[%clk 0:00:41.1]} 35... Rc8 {[%clk 0:01:00.9]} 36. Rbxb2 {[%clk
0:00:40.6]} 36... Nxb2 {[%clk 0:01:01.2]} 37. Rxb2 {[%clk 0:00:42.4]} 37... Rc4
{[%clk 0:01:00]} 38. Rd2 {[%clk 0:00:42.4]} 38... Be6 {[%clk 0:01:00.8]} 39. Re2
{[%clk 0:00:38.9]} 39... Kf7 {[%clk 0:01:01.3]} 40. Rd2 {[%clk 0:00:38.6]} 40...
Kf6 {[%clk 0:01:02.7]} 0-1

[Event "*** Titled Tuesday Blitz"]
[Site "Chess.com"]
[Date "2018.09.04"]
[Round "6"]
[White "Bauxi435"]
[Black "suyu28"]
[Result "0-1"]
[WhiteElo "2351"]
[BlackElo "2486"]
[TimeControl "180+2"]
[EndTime "14:53:28 PDT"]
[Termination "suyu28 won by resignation"]

1. d4 {[%clk 0:03:01.9]} 1... d5 {[%clk 0:03:00.2]} 2. c4 {[%clk 0:02:56.6]}
2... dxc4 {[%clk 0:02:52.8]} 3. e3 {[%clk 0:02:57.3]} 3... e6 {[%clk 0:02:47.9]}
4. Bxc4 {[%clk 0:02:58.1]} 4... Nf6 {[%clk 0:02:48.1]} 5. Nf3 {[%clk 0:02:57.6]}
5... c5 {[%clk 0:02:47.6]} 6. O-O {[%clk 0:02:58.7]} 6... Nc6 {[%clk 0:02:47.7]}
7. Bb3 {[%clk 0:02:46.5]} 7... cxd4 {[%clk 0:02:44.7]} 8. exd4 {[%clk
0:02:46.3]} 8... Be7 {[%clk 0:02:42.5]} 9. Nc3 {[%clk 0:02:44.8]} 9... O-O
{[%clk 0:02:41.4]} 10. h3 {[%clk 0:02:34.3]} 10... Nb4 {[%clk 0:02:27.5]} 11.
Bf4 {[%clk 0:02:34.6]} 11... Nbd5 {[%clk 0:02:26]} 12. Be5 {[%clk 0:02:32.4]}
12... b6 {[%clk 0:02:26.6]} 13. Qd3 {[%clk 0:02:28.1]} 13... Bb7 {[%clk
0:02:21.9]} 14. a3 {[%clk 0:02:28.7]} 14... Rc8 {[%clk 0:02:13.6]} 15. Rac1
{[%clk 0:02:25.9]} 15... Nxc3 {[%clk 0:02:07.5]} 16. Rxc3 {[%clk 0:02:20.6]}
16... Qd7 {[%clk 0:02:05.1]} 17. Rfc1 {[%clk 0:02:17.7]} 17... Be4 {[%clk
0:02:03.5]} 18. Qe2 {[%clk 0:02:11.6]} 18... Bd5 {[%clk 0:01:56.8]} 19. Rxc8
{[%clk 0:01:57]} 19... Rxc8 {[%clk 0:01:53.6]} 20. Rxc8+ {[%clk 0:01:57.6]}
20... Qxc8 {[%clk 0:01:50.4]} 21. Bxf6 {[%clk 0:01:40.5]} 21... Bxf6 {[%clk
0:01:50.3]} 22. Bxd5 {[%clk 0:01:41.2]} 22... exd5 {[%clk 0:01:51.9]} 23. Qb5
{[%clk 0:01:32.1]} 23... g6 {[%clk 0:01:41.8]} 24. g4 {[%clk 0:01:23.8]} 24...
Qc4 {[%clk 0:01:32.7]} 25. Qe8+ {[%clk 0:01:20.5]} 25... Kg7 {[%clk 0:01:29.6]}
26. Qe3 {[%clk 0:01:21]} 26... h6 {[%clk 0:01:19.7]} 27. h4 {[%clk 0:01:19.8]}
27... Qc7 {[%clk 0:01:17.8]} 28. g5 {[%clk 0:01:14.6]} 28... hxg5 {[%clk
0:01:18.1]} 29. hxg5 {[%clk 0:01:16.5]} 29... Be7 {[%clk 0:01:19.4]} 30. Kg2
{[%clk 0:01:15.4]} 30... Bd6 {[%clk 0:01:19.9]} 31. Qb3 {[%clk 0:01:03.2]} 31...
Qc4 {[%clk 0:01:04.8]} 32. Qe3 {[%clk 0:01:01]} 32... Qc2 {[%clk 0:01:04.1]} 33.
b4 {[%clk 0:00:42.5]} 33... a5 {[%clk 0:01:02.3]} 34. bxa5 {[%clk 0:00:40.6]}
34... bxa5 {[%clk 0:01:03.9]} 35. Qe1 {[%clk 0:00:27.2]} 35... Qe4 {[%clk
0:00:58.3]} 36. Qxa5 {[%clk 0:00:25.8]} 36... Qg4+ {[%clk 0:00:52.7]} 37. Kf1
{[%clk 0:00:27.1]} 37... Qxf3 {[%clk 0:00:53.8]} 38. Qb6 {[%clk 0:00:28.1]}
38... Qxa3 {[%clk 0:00:47.8]} 0-1

[Event "*** Titled Tuesday Blitz"]
[Site "Chess.com"]
[Date "2018.09.04"]
[Round "6"]
[White "alpasya2009"]
[Black "MikaelyanArman"]
[Result "0-1"]
[WhiteElo "2462"]
[BlackElo "2674"]
[TimeControl "180+2"]
[EndTime "14:53:30 PDT"]
[Termination "MikaelyanArman won by resignation"]

1. d4 {[%clk 0:03:01.9]} 1... Nf6 {[%clk 0:03:00.4]} 2. c4 {[%clk 0:03:03.3]}
2... e6 {[%clk 0:03:01.8]} 3. Nf3 {[%clk 0:03:04]} 3... Bb4+ {[%clk 0:03:02.7]}
4. Nbd2 {[%clk 0:03:04.6]} 4... O-O {[%clk 0:03:02.2]} 5. a3 {[%clk 0:03:04.6]}
5... Be7 {[%clk 0:03:03.3]} 6. e4 {[%clk 0:03:05.2]} 6... d6 {[%clk 0:03:02.2]}
7. Bd3 {[%clk 0:03:04.4]} 7... c5 {[%clk 0:03:01.4]} 8. O-O {[%clk 0:03:05.6]}
8... Nc6 {[%clk 0:02:48]} 9. d5 {[%clk 0:03:03.8]} 9... Nd4 {[%clk 0:02:33]} 10.
Nxd4 {[%clk 0:02:58.9]} 10... cxd4 {[%clk 0:02:34.9]} 11. f4 {[%clk 0:02:56.3]}
11... e5 {[%clk 0:02:31.6]} 12. Nf3 {[%clk 0:02:53.3]} 12... Bg4 {[%clk
0:02:25.9]} 13. b4 {[%clk 0:02:36.2]} 13... Rc8 {[%clk 0:02:20.5]} 14. Bd2
{[%clk 0:02:34.5]} 14... Nxe4 {[%clk 0:02:11.7]} 15. Bxe4 {[%clk 0:02:33.3]}
15... f5 {[%clk 0:02:12.7]} 16. Bd3 {[%clk 0:02:26.5]} 16... e4 {[%clk
0:02:12.4]} 17. Be2 {[%clk 0:02:27.6]} 17... exf3 {[%clk 0:02:12.6]} 18. Bxf3
{[%clk 0:02:28.1]} 18... Bxf3 {[%clk 0:02:02.7]} 19. Qxf3 {[%clk 0:02:28.7]}
19... Rxc4 {[%clk 0:02:03.2]} 20. Qd3 {[%clk 0:02:19.4]} 20... Qc7 {[%clk
0:02:03.3]} 21. Rac1 {[%clk 0:02:08.4]} 21... b5 {[%clk 0:02:04]} 22. Rce1
{[%clk 0:01:59.8]} 22... g6 {[%clk 0:01:53.3]} 23. Re6 {[%clk 0:01:39.4]} 23...
Bf6 {[%clk 0:01:54.2]} 24. a4 {[%clk 0:01:26.8]} 24... bxa4 {[%clk 0:01:45.3]}
25. Ra1 {[%clk 0:01:15.3]} 25... Rc3 {[%clk 0:01:21.8]} 26. Bxc3 {[%clk
0:01:11.9]} 26... dxc3 {[%clk 0:01:23.7]} 27. Rc1 {[%clk 0:01:03]} 27... Qb6+
{[%clk 0:01:14.6]} 28. Kf1 {[%clk 0:00:46.6]} 28... Qxb4 {[%clk 0:01:15.1]} 29.
Rxf6 {[%clk 0:00:44.9]} 29... Qxf4+ {[%clk 0:01:11.9]} 30. Ke2 {[%clk
0:00:41.6]} 30... Qxc1 {[%clk 0:00:58.3]} 31. Rxf8+ {[%clk 0:00:41.5]} 31...
Kxf8 {[%clk 0:00:58.7]} 32. Qa6 {[%clk 0:00:39.8]} 32... Qd2+ {[%clk 0:00:58.3]}
33. Kf3 {[%clk 0:00:40.3]} 33... Qxd5+ {[%clk 0:00:58]} 34. Kf4 {[%clk
0:00:38.8]} 34... Qe5+ {[%clk 0:00:28.7]} 35. Kg5 {[%clk 0:00:37.2]} 35... Qe3+
{[%clk 0:00:28.3]} 36. Kh4 {[%clk 0:00:34.9]} 36... Qf4+ {[%clk 0:00:28.7]} 0-1

[Event "*** Titled Tuesday Blitz"]
[Site "Chess.com"]
[Date "2018.09.04"]
[Round "6"]
[White "Synctel"]
[Black "novocane"]
[Result "0-1"]
[WhiteElo "1893"]
[BlackElo "2136"]
[TimeControl "180+2"]
[EndTime "14:53:36 PDT"]
[Termination "novocane won on time"]

1. d4 {[%clk 0:03:01.9]} 1... Nf6 {[%clk 0:03:00]} 2. Nf3 {[%clk 0:03:02.1]}
2... e6 {[%clk 0:03:01.1]} 3. e3 {[%clk 0:02:48.3]} 3... c5 {[%clk 0:03:00]} 4.
Bd3 {[%clk 0:02:48.1]} 4... b6 {[%clk 0:03:00.6]} 5. Qe2 {[%clk 0:02:47.6]} 5...
Bb7 {[%clk 0:03:00.8]} 6. Nbd2 {[%clk 0:02:46]} 6... Be7 {[%clk 0:03:00.8]} 7.
O-O {[%clk 0:02:46.2]} 7... d6 {[%clk 0:02:59.6]} 8. c3 {[%clk 0:02:43.6]} 8...
Nbd7 {[%clk 0:02:56.9]} 9. e4 {[%clk 0:02:44.1]} 9... e5 {[%clk 0:02:52.2]} 10.
Rd1 {[%clk 0:02:24.7]} 10... Qc7 {[%clk 0:02:43.6]} 11. a4 {[%clk 0:02:19.6]}
11... a6 {[%clk 0:02:44.1]} 12. Nf1 {[%clk 0:02:13]} 12... O-O {[%clk
0:02:30.1]} 13. Ng3 {[%clk 0:02:13.3]} 13... Rfe8 {[%clk 0:02:17.4]} 14. dxe5
{[%clk 0:01:49.4]} 14... dxe5 {[%clk 0:02:15.4]} 15. Nf5 {[%clk 0:01:49.8]}
15... Bf8 {[%clk 0:02:07.2]} 16. Ng5 {[%clk 0:01:16.9]} 16... h6 {[%clk
0:01:34.1]} 17. h4 {[%clk 0:00:21.8]} 17... Rad8 {[%clk 0:01:25.9]} 18. Nf3
{[%clk 0:00:19.2]} 18... Nh5 {[%clk 0:01:09]} 19. Bxa6 {[%clk 0:00:17.3]} 19...
Nf4 {[%clk 0:01:05.8]} 20. Bxf4 {[%clk 0:00:18.1]} 20... exf4 {[%clk 0:01:06.4]}
21. Bxb7 {[%clk 0:00:20]} 21... Qxb7 {[%clk 0:01:03.4]} 22. Nd6 {[%clk
0:00:13.5]} 22... Bxd6 {[%clk 0:01:00.7]} 23. Rxd6 {[%clk 0:00:15.4]} 23... Nf6
{[%clk 0:00:38.5]} 24. Rxd8 {[%clk 0:00:15.7]} 24... Rxd8 {[%clk 0:00:39.8]} 25.
e5 {[%clk 0:00:17.1]} 25... Ng4 {[%clk 0:00:38]} 26. Rd1 {[%clk 0:00:17.3]}
26... Re8 {[%clk 0:00:37.8]} 27. Rd6 {[%clk 0:00:17.5]} 27... Qc7 {[%clk
0:00:37.2]} 28. Qb5 {[%clk 0:00:18.2]} 28... Rxe5 {[%clk 0:00:35.6]} 29. Nxe5
{[%clk 0:00:12.5]} 29... Qxd6 {[%clk 0:00:36.5]} 30. Nxg4 {[%clk 0:00:13.2]}
30... Qd1+ {[%clk 0:00:37.5]} 31. Kh2 {[%clk 0:00:12.3]} 31... Qxg4 {[%clk
0:00:37.7]} 32. Qe8+ {[%clk 0:00:13.8]} 32... Kh7 {[%clk 0:00:38.9]} 33. Qe4+
{[%clk 0:00:15.1]} 33... f5 {[%clk 0:00:39.1]} 34. Qc6 {[%clk 0:00:15.5]} 34...
Qxh4+ {[%clk 0:00:39.7]} 35. Kg1 {[%clk 0:00:16.1]} 35... Qg4 {[%clk 0:00:40.6]}
36. Qxb6 {[%clk 0:00:16.5]} 36... f3 {[%clk 0:00:41.8]} 0-1

[Event "*** Titled Tuesday Blitz"]
[Site "Chess.com"]
[Date "2018.09.04"]
[Round "6"]
[White "AndrewDGreen"]
[Black "JSMastropiero"]
[Result "1-0"]
[WhiteElo "2230"]
[BlackElo "2364"]
[TimeControl "180+2"]
[EndTime "14:53:37 PDT"]
[Termination "AndrewDGreen won by checkmate"]

1. d4 {[%clk 0:03:01.9]} 1... Nf6 {[%clk 0:02:59.2]} 2. Nf3 {[%clk 0:03:02.8]}
2... d5 {[%clk 0:02:58.9]} 3. Bf4 {[%clk 0:03:03]} 3... e6 {[%clk 0:02:59.4]} 4.
e3 {[%clk 0:03:02.5]} 4... Bd6 {[%clk 0:03:00]} 5. Bg3 {[%clk 0:03:02.7]} 5...
O-O {[%clk 0:02:59.7]} 6. Nbd2 {[%clk 0:03:03.5]} 6... c5 {[%clk 0:03:00.7]} 7.
c3 {[%clk 0:03:04.4]} 7... b6 {[%clk 0:03:00.7]} 8. Bd3 {[%clk 0:03:04.6]} 8...
Nc6 {[%clk 0:03:00.3]} 9. Ne5 {[%clk 0:03:05.4]} 9... Bb7 {[%clk 0:02:58.6]} 10.
f4 {[%clk 0:03:05.5]} 10... Ne7 {[%clk 0:02:58.2]} 11. Qb1 {[%clk 0:03:06.3]}
11... g6 {[%clk 0:02:24.9]} 12. Bf2 {[%clk 0:03:05.5]} 12... Nf5 {[%clk
0:02:12.2]} 13. O-O {[%clk 0:03:05.4]} 13... Be7 {[%clk 0:02:11.1]} 14. g4
{[%clk 0:02:52.5]} 14... Nd6 {[%clk 0:02:10.6]} 15. Bh4 {[%clk 0:02:53.3]} 15...
Nfe4 {[%clk 0:02:09.5]} 16. Bxe7 {[%clk 0:02:50]} 16... Qxe7 {[%clk 0:02:10.3]}
17. Nxe4 {[%clk 0:02:49]} 17... dxe4 {[%clk 0:02:05.6]} 18. Be2 {[%clk
0:02:46.1]} 18... f6 {[%clk 0:02:02.4]} 19. Nc4 {[%clk 0:02:44.3]} 19... cxd4
{[%clk 0:01:56]} 20. Nxd6 {[%clk 0:02:43.4]} 20... Qxd6 {[%clk 0:01:52]} 21.
exd4 {[%clk 0:02:31.8]} 21... f5 {[%clk 0:01:42.1]} 22. g5 {[%clk 0:02:23.3]}
22... Rac8 {[%clk 0:01:39.9]} 23. Qe1 {[%clk 0:02:21]} 23... Qd5 {[%clk
0:01:31.9]} 24. Qg3 {[%clk 0:02:15.9]} 24... b5 {[%clk 0:01:28.3]} 25. a3 {[%clk
0:02:15.9]} 25... a5 {[%clk 0:01:27.2]} 26. h4 {[%clk 0:02:12.3]} 26... b4
{[%clk 0:01:21.6]} 27. axb4 {[%clk 0:02:13]} 27... axb4 {[%clk 0:01:22.7]} 28.
Ra7 {[%clk 0:02:12.1]} 28... bxc3 {[%clk 0:01:17]} 29. bxc3 {[%clk 0:02:14]}
29... Rf7 {[%clk 0:01:18.2]} 30. h5 {[%clk 0:02:12.2]} 30... Qb3 {[%clk
0:01:11]} 31. Rc1 {[%clk 0:01:48.2]} 31... Qb2 {[%clk 0:01:09.6]} 32. Qe3 {[%clk
0:01:48.8]} 32... Rfc7 {[%clk 0:01:08.3]} 33. c4 {[%clk 0:01:43.4]} 33... Rd8
{[%clk 0:01:02.1]} 34. Rd1 {[%clk 0:01:31.6]} 34... Rcd7 {[%clk 0:00:53.5]} 35.
d5 {[%clk 0:01:25.2]} 35... exd5 {[%clk 0:00:51.2]} 36. cxd5 {[%clk 0:01:12.9]}
36... Bxd5 {[%clk 0:00:49.8]} 37. Rxd7 {[%clk 0:01:10.3]} 37... Rxd7 {[%clk
0:00:51.7]} 38. Bc4 {[%clk 0:01:05.1]} 38... Bxc4 {[%clk 0:00:31]} 39. Rxd7
{[%clk 0:01:04.7]} 39... Qb1+ {[%clk 0:00:31.4]} 40. Kh2 {[%clk 0:01:02.9]}
40... Qb2+ {[%clk 0:00:21]} 41. Rd2 {[%clk 0:00:58.3]} 41... Qb3 {[%clk
0:00:20]} 42. Rd8+ {[%clk 0:00:52.3]} 42... Kf7 {[%clk 0:00:20.1]} 43. Qa7+
{[%clk 0:00:51]} 43... Ke6 {[%clk 0:00:21.1]} 44. Qd7# {[%clk 0:00:47.9]} 1-0

[Event "*** Titled Tuesday Blitz"]
[Site "Chess.com"]
[Date "2018.09.04"]
[Round "6"]
[White "MFguimaraes"]
[Black "volcanoexplorer"]
[Result "0-1"]
[WhiteElo "2284"]
[BlackElo "2314"]
[TimeControl "180+2"]
[EndTime "14:53:43 PDT"]
[Termination "volcanoexplorer won by resignation"]

1. e4 {[%clk 0:03:01.9]} 1... e5 {[%clk 0:03:00.2]} 2. Nf3 {[%clk 0:03:02.9]}
2... Nc6 {[%clk 0:03:00.9]} 3. Bc4 {[%clk 0:03:04.1]} 3... Bc5 {[%clk
0:03:01.5]} 4. b4 {[%clk 0:03:03.3]} 4... Bxb4 {[%clk 0:03:02.4]} 5. c3 {[%clk
0:03:04.6]} 5... Be7 {[%clk 0:03:03.6]} 6. d4 {[%clk 0:03:05]} 6... Na5 {[%clk
0:03:05.1]} 7. Nxe5 {[%clk 0:03:06]} 7... Nxc4 {[%clk 0:03:06.2]} 8. Nxc4 {[%clk
0:03:07.6]} 8... d5 {[%clk 0:03:07.9]} 9. exd5 {[%clk 0:03:09]} 9... Qxd5 {[%clk
0:03:09.8]} 10. Ne3 {[%clk 0:03:10.5]} 10... Qd8 {[%clk 0:03:11.1]} 11. O-O
{[%clk 0:03:07.3]} 11... Nf6 {[%clk 0:03:11.4]} 12. c4 {[%clk 0:03:07.4]} 12...
O-O {[%clk 0:03:06.8]} 13. Nc3 {[%clk 0:03:06.8]} 13... b6 {[%clk 0:02:52.2]}
14. Ned5 {[%clk 0:03:02.7]} 14... h6 {[%clk 0:02:37.7]} 15. Re1 {[%clk
0:02:58.1]} 15... Bd6 {[%clk 0:02:35.8]} 16. Qf3 {[%clk 0:02:55.7]} 16... Nxd5
{[%clk 0:02:33.3]} 17. Nxd5 {[%clk 0:02:31.8]} 17... Be6 {[%clk 0:02:19.3]} 18.
Be3 {[%clk 0:01:51.2]} 18... a5 {[%clk 0:01:21.4]} 19. g3 {[%clk 0:01:28.9]}
19... Qd7 {[%clk 0:01:15]} 20. c5 {[%clk 0:01:02.5]} 20... bxc5 {[%clk
0:00:53.4]} 21. dxc5 {[%clk 0:01:01.6]} 21... Be5 {[%clk 0:00:54.7]} 22. Rad1
{[%clk 0:00:59.9]} 22... Bg4 {[%clk 0:00:29.4]} 23. Ne7+ {[%clk 0:00:58]} 23...
Kh8 {[%clk 0:00:12.9]} 24. Rxd7 {[%clk 0:00:58.1]} 24... Bxf3 {[%clk 0:00:13.5]}
25. Bxh6 {[%clk 0:00:42.2]} 25... Bf6 {[%clk 0:00:14.7]} 26. Bf4 {[%clk
0:00:19.3]} 26... Rfe8 {[%clk 0:00:15.8]} 27. Rxc7 {[%clk 0:00:19.9]} 27... Rad8
{[%clk 0:00:15.7]} 28. Bd6 {[%clk 0:00:20.3]} 28... Kh7 {[%clk 0:00:14.6]} 29.
h4 {[%clk 0:00:21]} 29... g6 {[%clk 0:00:15.9]} 30. a3 {[%clk 0:00:21.3]} 30...
Kg7 {[%clk 0:00:17.3]} 31. Re3 {[%clk 0:00:21.8]} 31... Bg4 {[%clk 0:00:17]} 32.
f3 {[%clk 0:00:22.1]} 32... Bd4 {[%clk 0:00:17.9]} 33. fxg4 {[%clk 0:00:22.2]}
33... Bxe3+ {[%clk 0:00:19.2]} 34. Kg2 {[%clk 0:00:23]} 34... Rb8 {[%clk
0:00:20.3]} 35. Kf3 {[%clk 0:00:23.3]} 35... Rb3 {[%clk 0:00:21]} 36. c6 {[%clk
0:00:23.4]} 36... Bc5+ {[%clk 0:00:21.5]} 37. Ke4 {[%clk 0:00:24.1]} 37... Bxd6
{[%clk 0:00:22.9]} 38. Rd7 {[%clk 0:00:22.8]} 38... Bxe7 {[%clk 0:00:21.8]} 39.
Kd5 {[%clk 0:00:23.9]} 39... Rd3+ {[%clk 0:00:22.5]} 40. Ke5 {[%clk 0:00:23.2]}
40... Rxd7 {[%clk 0:00:23.5]} 41. cxd7 {[%clk 0:00:24.6]} 41... Rd8 {[%clk
0:00:25.4]} 0-1

[Event "*** Titled Tuesday Blitz"]
[Site "Chess.com"]
[Date "2018.09.04"]
[Round "6"]
[White "TheRigos"]
[Black "Marcus_Harvey"]
[Result "0-1"]
[WhiteElo "2422"]
[BlackElo "2688"]
[TimeControl "180+2"]
[EndTime "14:53:46 PDT"]
[Termination "Marcus_Harvey won on time"]

1. e4 {[%clk 0:03:00.9]} 1... e6 {[%clk 0:03:00.1]} 2. d4 {[%clk 0:03:01.9]}
2... d5 {[%clk 0:03:01]} 3. Nd2 {[%clk 0:03:03.8]} 3... h6 {[%clk 0:03:02.1]} 4.
Ngf3 {[%clk 0:03:04]} 4... Nf6 {[%clk 0:03:03.3]} 5. e5 {[%clk 0:03:05.3]} 5...
Nfd7 {[%clk 0:03:04.5]} 6. Bd3 {[%clk 0:03:06.8]} 6... c5 {[%clk 0:03:06]} 7. c3
{[%clk 0:03:08.2]} 7... Nc6 {[%clk 0:03:07.3]} 8. O-O {[%clk 0:03:09.3]} 8... g5
{[%clk 0:03:09]} 9. dxc5 {[%clk 0:03:01.4]} 9... Nxc5 {[%clk 0:03:09.8]} 10. Bb5
{[%clk 0:03:02.4]} 10... Qb6 {[%clk 0:03:09.6]} 11. Nd4 {[%clk 0:03:02]} 11...
Nd7 {[%clk 0:03:10.6]} 12. N2f3 {[%clk 0:02:54.9]} 12... g4 {[%clk 0:02:57]} 13.
Nh4 {[%clk 0:02:49.5]} 13... Ndxe5 {[%clk 0:02:47.1]} 14. Re1 {[%clk 0:02:47.1]}
14... Bd6 {[%clk 0:02:39.4]} 15. Bf4 {[%clk 0:01:47.7]} 15... Nf3+ {[%clk
0:02:36.2]} 16. Nhxf3 {[%clk 0:01:47.6]} 16... Bxf4 {[%clk 0:02:36.9]} 17. Ne5
{[%clk 0:01:48.4]} 17... Bxe5 {[%clk 0:02:31.5]} 18. Rxe5 {[%clk 0:01:48.2]}
18... h5 {[%clk 0:02:25.7]} 19. Qe2 {[%clk 0:01:25.1]} 19... Bd7 {[%clk
0:02:05.8]} 20. Rxd5 {[%clk 0:01:17.8]} 20... O-O-O {[%clk 0:02:06.9]} 21. Nxc6
{[%clk 0:00:24.5]} 21... Bxc6 {[%clk 0:02:05.8]} 22. Rxd8+ {[%clk 0:00:22.6]}
22... Rxd8 {[%clk 0:02:07]} 23. Bxc6 {[%clk 0:00:11.5]} 23... Qxc6 {[%clk
0:02:08.9]} 24. Rd1 {[%clk 0:00:11.4]} 24... Rxd1+ {[%clk 0:02:07.5]} 25. Qxd1
{[%clk 0:00:13.3]} 25... Qe4 {[%clk 0:01:53.8]} 26. b3 {[%clk 0:00:07.7]} 26...
h4 {[%clk 0:01:53.5]} 27. Kf1 {[%clk 0:00:04.4]} 27... h3 {[%clk 0:01:53.6]} 28.
gxh3 {[%clk 0:00:03.8]} 28... Qh1+ {[%clk 0:01:45]} 29. Ke2 {[%clk 0:00:04.9]}
29... Qf3+ {[%clk 0:01:46.6]} 30. Ke1 {[%clk 0:00:05.2]} 30... Qxc3+ {[%clk
0:01:47.6]} 31. Qd2 {[%clk 0:00:04.7]} 31... Qa1+ {[%clk 0:01:40.8]} 32. Ke2
{[%clk 0:00:04.8]} 32... gxh3 {[%clk 0:01:37.5]} 33. Kf3 {[%clk 0:00:03.1]}
33... Qh1+ {[%clk 0:01:31.5]} 34. Kg3 {[%clk 0:00:04.6]} 34... Qg2+ {[%clk
0:01:32.4]} 35. Kh4 {[%clk 0:00:06.5]} 35... Qxh2 {[%clk 0:01:33.7]} 36. Qc3+
{[%clk 0:00:06.9]} 36... Kd7 {[%clk 0:01:29.4]} 37. Qf6 {[%clk 0:00:06.9]} 37...
Ke8 {[%clk 0:01:27.8]} 38. Qh8+ {[%clk 0:00:07.4]} 38... Ke7 {[%clk 0:01:29]}
39. Qd4 {[%clk 0:00:08.9]} 39... Qg2 {[%clk 0:01:22.5]} 40. Qb4+ {[%clk
0:00:08.8]} 40... Kf6 {[%clk 0:01:21.8]} 41. Qf4+ {[%clk 0:00:08.4]} 41... Kg6
{[%clk 0:01:22.5]} 42. Qg3+ {[%clk 0:00:04]} 42... Qxg3+ {[%clk 0:01:22.5]} 43.
Kxg3 {[%clk 0:00:05.6]} 43... Kf5 {[%clk 0:01:23.3]} 44. Kxh3 {[%clk 0:00:06.6]}
44... Kf4 {[%clk 0:01:24.7]} 45. Kg2 {[%clk 0:00:07.2]} 45... e5 {[%clk
0:01:26.1]} 46. Kf1 {[%clk 0:00:08.3]} 46... e4 {[%clk 0:01:26.3]} 47. Ke2
{[%clk 0:00:09.6]} 47... f5 {[%clk 0:01:28]} 48. a3 {[%clk 0:00:10.2]} 48... Ke5
{[%clk 0:01:27.7]} 49. Ke3 {[%clk 0:00:10.3]} 49... f4+ {[%clk 0:01:28.1]} 50.
Ke2 {[%clk 0:00:11.7]} 50... Kd4 {[%clk 0:01:29.8]} 51. a4 {[%clk 0:00:11.8]}
51... Kc3 {[%clk 0:01:30.3]} 0-1